bitfinex/quotes_BTCUSD_20251201
["timestamp","ask_amount","ask_price","bid_price","bid_amount"]
[1764600521078,2.68203514,86201.0,86200.0,1e-08]
[1764600521305,2.68951514,86201.0,86200.0,1e-08]
[1764600521943,2.68203514,86201.0,86200.0,1e-08]
[1764600522238,2.68951514,86201.0,86200.0,1e-08]
[1764600522482,2.68951514,86201.0,86200.0,0.0002876]
[1764600522986,2.68951514,86201.0,86157.0,0.01740967]
[1764600523148,0.06088215,86170.0,86158.0,0.03911689]
[1764600523349,0.23211277,86166.0,86157.0,0.1168471]
[1764600523525,0.25674095,86165.0,86157.0,0.12845381]
[1764600523722,0.25674286,86164.0,86157.0,0.1168471]
[1764600523922,0.23212644,86161.0,86158.0,0.09932]
[1764600524121,0.25675357,86160.0,86158.0,0.10332]
[1764600524359,0.02462629,86159.0,86158.0,0.004]
[1764600524682,0.55513166,86158.0,86157.0,0.00011743]
[1764600524834,0.64108121,86158.0,86157.0,0.00611743]
[1764600525040,0.57975795,86158.0,86157.0,0.00611743]
[1764600525466,0.02462629,86158.0,86157.0,0.10543743]
[1764600525788,0.06548325,86158.0,86157.0,0.17901117]
[1764600525981,0.02462629,86158.0,86157.0,0.17301117]
[1764600526167,0.02462629,86158.0,86157.0,0.00011743]
[1764600526756,0.02462629,86158.0,86157.0,0.16746743]
[1764600526976,0.02462629,86158.0,86157.0,0.16846743]
[1764600527381,0.02462629,86158.0,86157.0,0.06414743]
[1764600527583,0.02462629,86158.0,86157.0,0.06914743]
[1764600527835,0.02462629,86158.0,86157.0,0.07014743]
[1764600527972,0.25675795,86158.0,86157.0,0.00111743]
[1764600528378,0.02462629,86158.0,86157.0,0.00249224]
[1764600528965,0.02462629,86158.0,86157.0,0.00149224]
[1764600529161,0.06548325,86158.0,86157.0,0.00849224]
[1764600529594,0.37265,86158.0,86157.0,0.00849224]
[1764600529807,0.44265299,86158.0,86157.0,0.00849224]
[1764600530003,0.00680126,86130.0,86123.0,0.0190913]
[1764600530248,0.01160873,86142.0,86123.0,0.0190913]
[1764600530249,0.06148147,86146.0,86135.0,0.23219208]
[1764600530447,0.33204481,86150.0,86138.0,0.06145927]
[1764600530621,0.06148147,86144.0,86138.0,0.06145927]
[1764600530825,0.23217934,86141.0,86138.0,0.04985]
[1764600531026,0.06148147,86144.0,86138.0,0.04985]
[1764600531226,0.06148147,86141.0,86138.0,0.28203428]
[1764600531449,0.06148147,86141.0,86138.0,0.06145927]
[1764600531693,0.06148147,86141.0,86139.0,0.24506983]
[1764600531881,0.06148147,86141.0,86139.0,0.34410995]
[1764600532083,0.01160927,86138.0,86132.0,0.04985]
[1764600532285,0.02680124,86130.0,86125.0,0.01161103]
[1764600532495,0.06857192,86130.0,86127.0,0.01161076]
[1764600532691,0.06177066,86129.0,86128.0,0.23221197]
[1764600532891,0.06177066,86129.0,86124.0,0.00748]
[1764600533109,0.06177153,86128.0,86125.0,0.01161103]
[1764600533296,0.02680124,86130.0,86124.0,0.01909116]
[1764600533492,0.02680124,86130.0,86123.0,0.24422747]
[1764600533493,0.01161049,86129.0,86127.0,0.005]
[1764600533796,0.01161076,86127.0,86123.0,0.00039173]
[1764600533999,0.23222191,86125.0,86123.0,0.00039173]
[1764600534233,0.23222191,86125.0,86124.0,0.003]
[1764600534584,0.23225296,86113.0,86112.0,0.0001]
[1764600534752,0.01161197,86118.0,86112.0,0.00021751]
[1764600534956,0.08252314,86119.0,86115.0,0.01161237]
[1764600535204,0.08252314,86119.0,86113.0,0.01161264]
[1764600535205,0.08252314,86125.0,86120.0,0.0116117]
[1764600535425,0.08252314,86128.0,86125.0,0.24383151]
[1764600535555,0.08252314,86128.0,86124.0,0.01161116]
[1764600535750,0.005,86129.0,86127.0,0.00095974]
[1764600535951,0.01161156,86121.0,86116.0,0.09904]
[1764600536165,0.23224462,86117.0,86115.0,0.001]
[1764600536438,0.24385672,86117.0,86110.0,0.00768]
[1764600536813,0.24385672,86117.0,86110.0,0.0002]
[1764600536814,0.23225296,86113.0,86110.0,0.0002]
[1764600537027,0.23225076,86114.0,86110.0,0.0002]
[1764600538339,0.37265,86113.0,86110.0,0.0002]
[1764600538787,0.55527724,86104.0,86103.0,4.012e-05]
[1764600539014,0.56275724,86104.0,86103.0,0.00015764]
[1764600539239,0.323,86104.0,86103.0,0.00015764]
[1764600539461,0.26692558,86105.0,86103.0,0.00015764]
[1764600539693,0.55531232,86091.0,86090.0,0.0002]
[1764600539920,0.323,86091.0,86090.0,0.0003172]
[1764600540376,0.23230962,86092.0,86090.0,0.0003172]
[1764600540377,0.323,86092.0,86090.0,0.0003172]
[1764600540613,0.04969,86091.0,86090.0,0.0003172]
[1764600541284,0.55531127,86092.0,86090.0,0.0003172]
[1764600541515,0.04969,86091.0,86090.0,0.0003172]
[1764600541744,0.22428945,86091.0,86090.0,0.0003172]
[1764600541985,0.61788929,86071.0,86046.0,0.00752]
[1764600542208,0.3476999,86071.0,86070.0,0.00031764]
[1764600542459,0.23233113,86085.0,86070.0,0.06233764]
[1764600542665,0.01161318,86109.0,86085.0,0.01161642]
[1764600542866,0.5926952,86100.0,86090.0,0.24392876]
[1764600543069,0.011,86091.0,86090.0,0.001]
[1764600543708,0.24389574,86103.0,86094.0,0.01161521]
[1764600543914,0.01161467,86098.0,86091.0,0.24392681]
[1764600544071,0.01161453,86099.0,86053.0,0.09904]
[1764600544072,0.01161737,86078.0,86053.0,0.09904]
[1764600544270,0.03219456,86098.0,86067.0,0.01161885]
[1764600544500,0.0116148,86097.0,86090.0,0.01161575]
[1764600544664,0.323,86098.0,86092.0,0.01161548]
[1764600544863,0.01161507,86095.0,86090.0,0.01161575]
[1764600545158,0.8365986,86100.0,86089.0,0.24393359]
[1764600545159,0.03449,86111.0,86101.0,0.01161426]
[1764600545286,0.01740967,86140.0,86087.0,0.04985]
[1764600545287,0.03449,86125.0,86120.0,0.0116117]
[1764600545491,0.01161089,86126.0,86115.0,0.06146237]
[1764600545696,0.01161062,86128.0,86117.0,0.0116121]
[1764600545892,0.01161197,86118.0,86115.0,0.04985]
[1764600546109,0.01161372,86105.0,86092.0,0.04985]
[1764600546308,0.0116144,86100.0,86087.0,0.06146615]
[1764600546513,0.0116144,86100.0,86094.0,0.01161521]
[1764600546714,0.01161453,86099.0,86091.0,0.01161561]
[1764600546942,0.01161494,86096.0,86090.0,0.00214435]
[1764600547104,0.24391895,86095.0,86088.0,0.036278]
[1764600547306,0.24391209,86097.0,86095.0,0.00198421]
[1764600547536,0.24391177,86097.0,86092.0,0.01161548]
[1764600547860,0.24391177,86097.0,86091.0,0.24392726]
[1764600548064,0.24391423,86096.0,86090.0,0.24393076]
[1764600548264,0.01161426,86101.0,86096.0,0.01161494]
[1764600548395,0.01161413,86102.0,86097.0,0.0116148]
[1764600548598,0.01161413,86102.0,86098.0,0.02681437]
[1764600548599,0.24389823,86102.0,86098.0,0.02681437]
[1764600548827,0.03630581,86103.0,86098.0,0.13746904]
[1764600549020,0.24389727,86102.0,86098.0,0.12585437]
[1764600549221,0.23228835,86100.0,86098.0,0.02681437]
[1764600549401,0.01161426,86101.0,86098.0,0.02681437]
[1764600549630,0.01161453,86099.0,86098.0,0.004]
[1764600550559,0.02468756,86101.0,86100.0,0.23228803]
[1764600550766,0.001,86102.0,86100.0,0.39334803]
[1764600550916,0.02469415,86125.0,86117.0,0.0116121]
[1764600551138,0.02469415,86129.0,86127.0,0.23221307]
[1764600551397,0.03449,86150.0,86138.0,0.01160927]
[1764600551398,0.03630221,86147.0,86138.0,0.01160927]
[1764600551597,0.0116086,86143.0,86136.0,0.24379957]
[1764600551792,0.01160941,86137.0,86128.0,0.15641]
[1764600552051,0.01161022,86131.0,86128.0,0.00752]
[1764600552272,0.2322077,86130.0,86128.0,0.00752]
[1764600552473,0.2438153,86131.0,86128.0,0.00752]
[1764600552827,0.2322265,86123.0,86115.0,0.04985]
[1764600552960,0.00039011,86137.0,86115.0,0.04985]
[1764600552961,0.01161156,86121.0,86116.0,0.01598883]
[1764600553616,0.01161156,86121.0,86117.0,0.0116121]
[1764600553795,0.01161143,86122.0,86118.0,0.24384996]
[1764600553998,0.02471224,86129.0,86124.0,0.01161116]
[1764600554231,0.02471224,86138.0,86134.0,0.24380563]
[1764600554367,0.5926952,86140.0,86130.0,0.01161035]
[1764600554368,0.26850543,86139.0,86131.0,0.01161022]
[1764600554567,0.01199952,86137.0,86132.0,0.24381115]
[1764600554797,0.00039011,86137.0,86135.0,0.23219235]
[1764600554996,0.00039011,86137.0,86136.0,0.06202]
[1764600555191,0.02471224,86158.0,86152.0,0.24375398]
[1764600555400,0.00011698,86158.0,86153.0,0.03305618]
[1764600555596,0.01172356,86158.0,86154.0,0.04985]
[1764600555801,0.01160671,86157.0,86154.0,0.04985]
[1764600556003,0.23213867,86156.0,86154.0,0.04985]
[1764600556204,0.25685091,86156.0,86154.0,0.04985]
[1764600556627,0.25685091,86156.0,86152.0,0.001]
[1764600556628,0.23214244,86154.0,86152.0,0.001]
[1764600556948,0.25685468,86154.0,86152.0,0.001]
[1764600557417,0.01160833,86145.0,86138.0,0.01160927]
[1764600557640,0.01160833,86145.0,86140.0,0.24378836]
[1764600557641,0.01160846,86144.0,86140.0,0.24378836]
[1764600557847,0.01160846,86144.0,86139.0,0.03306047]
[1764600557848,0.01160833,86145.0,86139.0,0.02554047]
[1764600558087,0.01160954,86136.0,86129.0,0.2322086]
[1764600558312,0.02473352,86141.0,86134.0,0.01160981]
[1764600558537,0.26850101,86148.0,86141.0,0.06255]
[1764600558737,0.23217102,86144.0,86142.0,0.00752]
[1764600558937,0.02473352,86143.0,86142.0,0.00752]
[1764600559450,0.01160968,86135.0,86129.0,0.001]
[1764600559695,0.24381092,86133.0,86129.0,0.26521172]
[1764600559885,0.24380918,86133.0,86129.0,0.03300287]
[1764600560067,0.02473352,86134.0,86131.0,0.01161022]
[1764600560272,0.24380634,86134.0,86130.0,0.01161035]
[1764600560584,0.24380634,86134.0,86129.0,0.01152]
[1764600560585,0.01161008,86132.0,86129.0,0.00752]
[1764600560785,0.01161035,86130.0,86126.0,0.01161089]
[1764600560991,0.02474444,86132.0,86131.0,0.34350237]
[1764600561170,0.02474444,86132.0,86131.0,0.41930234]
[1764600561540,0.02474444,86137.0,86135.0,0.23219118]
[1764600561719,0.02474444,86136.0,86134.0,0.01160981]
[1764600561860,0.02474444,86135.0,86134.0,0.11091981]
[1764600562269,0.00011694,86137.0,86135.0,0.23219364]
[1764600562476,0.00011694,86137.0,86136.0,0.27708596]
[1764600563553,0.00011694,86137.0,86135.0,0.001]
[1764600563697,0.23230532,86137.0,86136.0,0.00752]
[1764600563906,0.25704976,86137.0,86136.0,0.00752]
[1764600564114,0.25704976,86137.0,86136.0,0.01152]
[1764600564334,0.25704976,86137.0,86136.0,0.01219175]
[1764600564534,0.25704976,86137.0,86136.0,0.00919175]
[1764600564735,0.02486138,86137.0,86136.0,0.01019175]
[1764600564941,0.00011694,86137.0,86136.0,0.00919175]
[1764600565145,0.00011694,86137.0,86136.0,0.03936733]
[1764600565434,0.00011694,86137.0,86136.0,0.04036733]
[1764600565792,0.00011694,86137.0,86136.0,0.33510828]
[1764600565927,0.00011694,86137.0,86136.0,0.43441828]
[1764600567214,0.00011694,86137.0,86136.0,0.43341828]
[1764600567585,0.00011694,86137.0,86136.0,0.43437828]
[1764600568019,0.00011694,86137.0,86136.0,0.43237828]
[1764600568361,0.00011694,86137.0,86136.0,0.4072027]
[1764600569132,0.00011694,86137.0,86136.0,0.16753175]
[1764600569335,0.00011694,86137.0,86136.0,0.07570175]
[1764600569622,0.00011694,86137.0,86136.0,0.07470175]
[1764600569791,0.00011694,86137.0,86136.0,0.07170175]
[1764600570016,0.00011694,86137.0,86136.0,0.48938963]
[1764600570230,0.00011694,86137.0,86136.0,0.48838963]
[1764600570432,0.00011694,86137.0,86136.0,0.48738963]
[1764600570631,0.00111694,86137.0,86136.0,0.48738963]
[1764600570889,0.00011694,86137.0,86136.0,0.48838963]
[1764600571218,0.00011694,86137.0,86136.0,0.48938963]
[1764600571422,0.00011694,86137.0,86136.0,0.48838963]
[1764600571631,0.05564692,86165.0,86160.0,0.01160631]
[1764600571852,0.23223032,86165.0,86164.0,0.1113]
[1764600572049,0.00011752,86165.0,86164.0,0.38082741]
[1764600572278,0.00011752,86165.0,86164.0,0.4705734]
[1764600573259,0.00111752,86165.0,86164.0,0.4705734]
[1764600573465,0.00011752,86165.0,86164.0,0.4705734]
[1764600573686,0.00011752,86165.0,86164.0,0.2394579]
[1764600573896,0.23223032,86165.0,86164.0,0.10273599]
[1764600574776,0.00011752,86165.0,86164.0,0.03918599]
[1764600574975,0.00011752,86165.0,86164.0,0.33544149]
[1764600575620,0.00011752,86165.0,86164.0,0.10332599]
[1764600575859,0.00011752,86165.0,86164.0,0.33544149]
[1764600576079,0.00211752,86165.0,86164.0,0.52171966]
[1764600576355,0.00011752,86165.0,86164.0,0.52171966]
[1764600576529,0.00211752,86165.0,86164.0,0.52171966]
[1764600576853,0.00211752,86165.0,86164.0,0.10332599]
[1764600577254,0.00211752,86165.0,86164.0,0.33644149]
[1764600577615,0.00211752,86165.0,86164.0,0.42924149]
[1764600579442,0.00211752,86165.0,86164.0,0.19712599]
[1764600580102,0.00211752,86165.0,86164.0,0.42924149]
[1764600580324,0.00211752,86165.0,86164.0,0.52281954]
[1764600580865,0.00211752,86165.0,86164.0,0.29070404]
[1764600581037,0.23423032,86165.0,86164.0,0.001]
[1764600581850,0.00211752,86165.0,86164.0,0.15794]
[1764600582029,0.00211752,86165.0,86164.0,0.3900555]
[1764600582261,0.00211752,86165.0,86164.0,0.47855536]
[1764600583459,0.00211752,86165.0,86164.0,0.3900555]
[1764600583997,0.00211752,86165.0,86164.0,0.07262]
[1764600584203,0.00211752,86165.0,86164.0,0.16542]
[1764600584402,0.00211752,86165.0,86164.0,0.3975355]
[1764600584654,0.00211752,86165.0,86164.0,0.07262]
[1764600584888,0.00211752,86165.0,86164.0,0.3975355]
[1764600585220,0.23423032,86165.0,86164.0,0.25391912]
[1764600585461,0.23423032,86165.0,86164.0,0.001]
[1764600585462,0.57637032,86165.0,86164.0,0.001]
[1764600585660,0.61863615,86165.0,86131.0,0.06036022]
[1764600585863,0.61863615,86165.0,86125.0,0.0928]
[1764600585864,0.23224487,86116.0,86110.0,0.0928]
[1764600586083,0.23224487,86116.0,86115.0,0.064115]
[1764600586286,0.23226375,86109.0,86108.0,0.04985]
[1764600586407,0.01161224,86116.0,86115.0,0.00108791]
[1764600587034,0.01161224,86116.0,86115.0,0.00147802]
[1764600588097,0.33461224,86116.0,86115.0,0.00147802]
[1764600588868,0.33661224,86116.0,86115.0,0.00147802]
[1764600589469,0.002,86116.0,86115.0,0.00147802]
[1764600589705,0.23424487,86116.0,86115.0,0.00147802]
[1764600590118,0.24281487,86116.0,86115.0,0.00147802]
[1764600591094,0.25138487,86116.0,86115.0,0.00147802]
[1764600591272,0.24281487,86116.0,86115.0,0.00147802]
[1764600591578,0.23424487,86116.0,86115.0,0.00147802]
[1764600592756,0.24281487,86116.0,86115.0,0.00147802]
[1764600593123,0.23424487,86116.0,86115.0,0.00147802]
[1764600594739,0.002,86116.0,86115.0,0.00147802]
[1764600595035,0.002,86116.0,86115.0,0.02974293]
[1764600595236,0.002,86116.0,86115.0,0.00147802]
[1764600595594,0.01057,86116.0,86115.0,0.00147802]
[1764600595793,0.01161534,86093.0,86083.0,0.04891]
[1764600596000,0.5926952,86093.0,86091.0,0.2323105]
[1764600596207,0.01161426,86101.0,86094.0,0.01161521]
[1764600596383,0.01161426,86101.0,86091.0,0.01161561]
[1764600596384,0.24390653,86099.0,86098.0,0.04891]
[1764600596592,0.01161494,86096.0,86091.0,0.01161561]
[1764600596925,0.24390951,86098.0,86095.0,0.00064022]
[1764600597128,0.01161467,86098.0,86095.0,0.04891]
[1764600597371,0.24390921,86098.0,86095.0,0.07801258]
[1764600597588,0.01161426,86101.0,86096.0,0.24391376]
[1764600597932,0.01161318,86109.0,86104.0,0.01161386]
[1764600598132,0.01161345,86107.0,86105.0,0.032846]
[1764600598362,0.01161359,86106.0,86098.0,0.01161467]
[1764600598565,0.01161359,86106.0,86102.0,0.01161413]
[1764600598769,0.24387029,86112.0,86106.0,0.30522359]
[1764600598974,0.23228448,86102.0,86098.0,0.01161467]
[1764600599195,0.24389668,86103.0,86097.0,0.0116148]
[1764600599402,0.23227716,86105.0,86101.0,0.04280595]
[1764600599534,0.24389236,86104.0,86101.0,0.03119169]
[1764600599737,0.01161386,86104.0,86101.0,0.03119169]
[1764600599939,0.23228212,86103.0,86101.0,0.03119169]
[1764600600144,0.24389611,86103.0,86100.0,0.00748]
[1764600600374,0.23228533,86101.0,86100.0,0.00748]
[1764600600542,0.23228533,86101.0,86083.0,0.05650694]
[1764600600543,0.01161548,86092.0,86083.0,0.05650694]
[1764600600809,0.23233121,86084.0,86083.0,0.00011694]
[1764600601007,0.56242121,86084.0,86083.0,0.00011694]
[1764600601265,0.56951121,86084.0,86083.0,0.00011694]
[1764600601445,0.56242121,86084.0,86083.0,0.00011694]
[1764600602077,0.01161521,86094.0,86086.0,0.24394089]
[1764600602281,0.01161588,86089.0,86083.0,0.00011694]
[1764600602484,0.004,86084.0,86083.0,0.00011694]
[1764600602884,0.004,86084.0,86083.0,0.15695694]
[1764600603145,0.23232655,86086.0,86083.0,0.06145694]
[1764600603296,0.23232396,86087.0,86084.0,0.06655359]
[1764600603502,0.23232396,86087.0,86083.0,0.23244913]
[1764600603503,0.01161615,86087.0,86083.0,0.00011694]
[1764600603702,0.24042121,86084.0,86083.0,0.00011694]
[1764600604104,0.56242121,86084.0,86083.0,0.00011694]
[1764600604533,0.56542121,86084.0,86083.0,0.00011694]
[1764600604733,0.56990121,86084.0,86083.0,0.00011694]
[1764600605101,0.57190121,86084.0,86083.0,0.00011694]
[1764600605306,0.55733121,86084.0,86083.0,0.00011694]
[1764600605508,0.325,86084.0,86083.0,0.00011694]
[1764600605762,0.33918,86084.0,86083.0,0.00011694]
[1764600605980,0.325,86084.0,86083.0,0.00011694]
[1764600606417,0.01161575,86090.0,86083.0,0.01173363]
[1764600606546,0.01161602,86088.0,86084.0,0.29391178]
[1764600606765,0.01161575,86090.0,86085.0,0.01161642]
[1764600606978,0.23232416,86087.0,86084.0,0.29391222]
[1764600607167,0.23232456,86087.0,86084.0,0.06158151]
[1764600607407,0.23231048,86092.0,86089.0,0.01161588]
[1764600607611,2.0,86107.0,86102.0,0.01161413]
[1764600607820,0.04111572,86131.0,86090.0,0.02416538]
[1764600607821,0.0116113,86123.0,86114.0,0.01161251]
[1764600608022,0.23225063,86114.0,86110.0,0.01161305]
[1764600608239,0.01161264,86113.0,86104.0,0.01161386]
[1764600608451,0.24387565,86110.0,86105.0,0.24388613]
[1764600608675,0.23227285,86106.0,86104.0,0.00605239]
[1764600608876,0.24388864,86105.0,86104.0,0.00011694]
[1764600609437,2.67580927,86105.0,86104.0,0.00011694]
[1764600609664,0.23236442,86072.0,86061.0,0.0955]
[1764600609868,0.23236442,86072.0,86070.0,0.00031764]
[1764600610940,0.23243921,86044.0,86030.0,0.0002]
[1764600611138,0.23243921,86044.0,86043.0,0.01256452]
[1764600611139,2.56291921,86044.0,86043.0,0.01256452]
[1764600611340,2.56948921,86044.0,86043.0,0.01256452]
[1764600611933,2.6320122,86044.0,86043.0,0.01256452]
[1764600612131,2.6320122,86044.0,86020.0,0.0002]
[1764600612132,2.61802435,86021.0,86020.0,0.0002]
[1764600612337,0.54392834,86001.0,85997.0,4.008e-05]
[1764600612594,0.00039122,86001.0,86000.0,10.13542596]
[1764600612798,0.00039122,86001.0,86000.0,10.0202]
[1764600613517,0.0917797,86002.0,86000.0,10.0202]
[1764600613751,0.99375281,86010.0,86000.0,10.02031688]
[1764600613967,0.01162655,86010.0,86001.0,0.04891]
[1764600614191,1.00537936,86010.0,86009.0,0.00339657]
[1764600614401,0.01162655,86010.0,86009.0,0.00339657]
[1764600614813,0.323,86019.0,86011.0,0.01162641]
[1764600615026,0.33462331,86034.0,86018.0,0.01162547]
[1764600615232,0.23250353,86021.0,86019.0,0.02441322]
[1764600615441,0.0116252,86020.0,86012.0,0.01162628]
[1764600615654,0.01162412,86028.0,86020.0,0.24412739]
[1764600615867,0.4648222,86055.0,86010.0,0.0955]
[1764600615868,0.01162196,86044.0,86034.0,0.01162331]
[1764600616087,0.99375281,86050.0,86043.0,0.01162209]
[1764600616311,0.99375281,86050.0,86045.0,0.2440564]
[1764600616532,0.01162169,86046.0,86038.0,0.04891]
[1764600616745,0.01162128,86049.0,86030.0,0.00752]
[1764600616746,0.01162331,86034.0,86030.0,0.00752]
[1764600616951,0.01162493,86022.0,86014.0,0.23251955]
[1764600617137,0.01162398,86029.0,86024.0,0.01162466]
[1764600617382,0.01162493,86022.0,86018.0,0.01362547]
[1764600617597,0.01162479,86023.0,86016.0,0.01162574]
[1764600617802,0.01162479,86023.0,86020.0,0.24412774]
[1764600618013,0.01162493,86022.0,86021.0,0.02790049]
[1764600618218,0.01162439,86026.0,86020.0,0.0116252]
[1764600618389,0.01162398,86029.0,86017.0,0.0116256]
[1764600618390,0.23247974,86029.0,86017.0,0.0116256]
[1764600618627,0.001,86022.0,86018.0,0.006]
[1764600618833,0.01162142,86048.0,86040.0,0.0116225]
[1764600619030,0.00618,86073.0,86039.0,0.23245214]
[1764600619031,0.01161993,86059.0,86047.0,0.01162155]
[1764600619232,0.23240866,86056.0,86048.0,0.24404835]
[1764600619379,0.232417,86053.0,86047.0,0.01162155]
[1764600619561,0.01161993,86059.0,86049.0,0.01162128]
[1764600619769,0.01162047,86055.0,86050.0,0.01162115]
[1764600619968,0.01162128,86049.0,86033.0,0.23246703]
[1764600620189,0.23243809,86045.0,86039.0,0.10711263]
[1764600620393,0.01162169,86046.0,86042.0,0.00752]
[1764600620631,0.01162169,86046.0,86042.0,0.01914223]
[1764600620859,1.00537261,86060.0,86055.0,0.01162047]
[1764600621045,0.99375281,86070.0,86055.0,0.24402835]
[1764600621197,0.0116198,86060.0,86055.0,0.0255649]
[1764600621396,0.01162007,86058.0,86055.0,0.0255649]
[1764600621602,0.01161953,86062.0,86059.0,0.00179337]
[1764600621804,0.01161953,86062.0,86048.0,0.24404776]
[1764600621805,0.01162061,86054.0,86049.0,0.01162128]
[1764600622021,0.01162047,86055.0,86051.0,0.24403984]
[1764600622234,0.01162101,86051.0,86045.0,0.24405635]
[1764600622436,0.01162101,86051.0,86047.0,0.24405185]
[1764600622689,0.01162047,86055.0,86050.0,0.01162115]
[1764600622950,0.33461764,86076.0,86064.0,0.01161926]
[1764600623152,1.16130247,86111.0,86067.0,0.01161885]
[1764600623153,0.99375281,86080.0,86067.0,0.01161885]
[1764600623355,0.23235722,86075.0,86067.0,0.01161885]
[1764600623500,0.23235722,86075.0,86068.0,0.2323728]
[1764600623703,0.01740967,86094.0,86068.0,0.3278628]
[1764600623918,0.0116148,86097.0,86085.0,0.01161642]
[1764600624123,0.23232636,86086.0,86080.0,0.00752]
[1764600624322,0.01161642,86085.0,86081.0,0.01161696]
[1764600624537,0.01161615,86087.0,86083.0,0.01161669]
[1764600624737,0.24393797,86088.0,86084.0,0.01161656]
[1764600624959,0.01161548,86092.0,86086.0,0.23232581]
[1764600625197,0.24391815,86095.0,86090.0,0.01161575]
[1764600625400,0.00039211,86097.0,86093.0,0.01161534]
[1764600625720,0.00039211,86097.0,86095.0,0.23230057]
[1764600625857,0.00039211,86097.0,86096.0,0.06627938]
[1764600626240,0.00039211,86097.0,86096.0,0.07379938]
[1764600626437,0.00039211,86097.0,86093.0,0.01913534]
[1764600626696,0.01261602,86088.0,86084.0,0.005]
[1764600626998,0.01161575,86090.0,86086.0,0.01161629]
[1764600627206,0.01161561,86091.0,86087.0,0.24393926]
[1764600627406,0.01161669,86083.0,86079.0,0.01161723]
[1764600627563,0.24395535,86082.0,86077.0,0.0116175]
[1764600627773,0.24395746,86081.0,86078.0,0.01161737]
[1764600627984,0.24395746,86081.0,86076.0,0.05624]
[1764600627985,0.24396066,86080.0,86076.0,0.04872]
[1764600628191,0.01161804,86073.0,86063.0,0.01161939]
[1764600628416,0.24398178,86072.0,86068.0,0.24399074]
[1764600628618,0.01161831,86071.0,86068.0,0.01161872]
[1764600629042,0.01161683,86082.0,86073.0,0.2323609]
[1764600629244,0.01161683,86082.0,86076.0,0.04901]
[1764600629245,0.23234588,86079.0,86076.0,0.04901]
[1764600629421,0.01161791,86074.0,86065.0,0.04750435]
[1764600629764,0.01161818,86072.0,86069.0,0.01161858]
[1764600629916,0.01161831,86071.0,86064.0,0.04872]
[1764600630257,0.23238085,86066.0,86064.0,0.04872]
[1764600630558,0.01161939,86063.0,86062.0,0.00752]
[1764600630857,0.99375281,86072.0,86063.0,0.01161939]
[1764600631066,0.01161696,86081.0,86071.0,0.24398245]
[1764600631202,0.0116175,86077.0,86072.0,0.0255601]
[1764600631406,0.0116175,86077.0,86072.0,0.01161818]
[1764600631606,0.2323501,86077.0,86071.0,0.01161831]
[1764600631812,0.01161399,86103.0,86095.0,0.01161507]
[1764600632121,0.23228861,86100.0,86096.0,0.00752]
[1764600632323,0.0116148,86097.0,86089.0,0.04984234]
[1764600632530,0.0116148,86097.0,86090.0,0.00752]
[1764600632531,0.01161521,86094.0,86090.0,0.00752]
[1764600632746,0.01161521,86094.0,86087.0,0.01161615]
[1764600632747,0.23231283,86091.0,86087.0,0.01161615]
[1764600632953,0.23231618,86090.0,86088.0,0.04995057]
[1764600633156,0.24432088,86091.0,86089.0,0.00752]
[1764600633862,0.01161737,86078.0,86073.0,0.04901]
[1764600634105,0.23235191,86077.0,86074.0,0.00752]
[1764600634306,0.24396941,86077.0,86075.0,0.07768608]
[1764600634509,0.01161777,86075.0,86063.0,0.10943939]
[1764600634707,0.24398229,86072.0,86068.0,0.01161872]
[1764600634903,1.00537058,86075.0,86071.0,0.24398338]
[1764600635125,1.00537058,86075.0,86073.0,0.23236051]
[1764600635319,0.2323582,86074.0,86069.0,0.01161858]
[1764600635528,0.24397966,86073.0,86070.0,0.03914445]
[1764600635731,0.24397611,86074.0,86070.0,0.03914445]
[1764600635940,0.01161858,86069.0,86065.0,0.04901]
[1764600636148,0.24399879,86066.0,86060.0,0.23239395]
[1764600636380,0.2440019,86065.0,86061.0,0.00752]
[1764600636593,0.01161912,86065.0,86061.0,0.01913966]
[1764600636886,0.24400472,86064.0,86061.0,0.23991207]
[1764600637099,0.01161926,86064.0,86062.0,0.30518523]
[1764600637437,0.01161737,86078.0,86072.0,0.01161818]
[1764600637666,0.23235159,86077.0,86072.0,0.01161818]
[1764600637842,0.01161723,86079.0,86072.0,0.01161818]
[1764600638045,0.24397069,86076.0,86073.0,0.03162308]
[1764600638272,0.01161764,86076.0,86073.0,0.04324112]
[1764600638471,0.23236343,86073.0,86069.0,0.24398946]
[1764600638676,0.23232503,86087.0,86074.0,0.01161791]
[1764600638832,0.2323261,86086.0,86082.0,0.01161683]
[1764600639033,0.01161615,86087.0,86079.0,0.01161723]
[1764600639246,0.01161669,86083.0,86080.0,0.00792472]
[1764600639459,0.24395167,86083.0,86080.0,0.00792472]
[1764600639658,0.23233735,86082.0,86080.0,0.00792472]
[1764600639859,0.01161629,86086.0,86080.0,0.00792472]
[1764600640058,1.23768546,86090.0,86084.0,0.01161656]
[1764600640305,0.24392097,86094.0,86089.0,0.01161588]
[1764600640456,0.01161534,86093.0,86088.0,0.25145631]
[1764600640662,0.01161548,86092.0,86088.0,0.00752]
[1764600640859,0.23231501,86090.0,86088.0,0.00752]
[1764600641099,0.23231771,86089.0,86088.0,0.00752]
[1764600641419,0.24395521,86082.0,86078.0,0.23234659]
[1764600641712,0.99375281,86089.0,86084.0,0.01161656]
[1764600641915,0.33461453,86099.0,86093.0,0.23230692]
[1764600642127,0.01161467,86098.0,86088.0,0.24393462]
[1764600642262,0.01200732,86094.0,86088.0,0.24393376]
[1764600642468,0.24392322,86093.0,86089.0,0.23231755]
[1764600642876,0.01200732,86094.0,86090.0,0.06272629]
[1764600643075,0.24392226,86093.0,86090.0,0.05111054]
[1764600643224,0.23231023,86092.0,86090.0,0.05111054]
[1764600643446,0.23231232,86091.0,86090.0,0.05111054]
[1764600643614,0.01161615,86087.0,86082.0,0.10943683]
[1764600643963,0.23231232,86091.0,86077.0,0.23234911]
[1764600643964,0.01161669,86083.0,86078.0,0.00752]
[1764600644109,0.01161669,86083.0,86078.0,0.01913737]
[1764600644110,0.01161683,86082.0,86078.0,0.01913737]
[1764600644311,0.24395894,86081.0,86078.0,0.00752]
[1764600644554,0.23234454,86080.0,86078.0,0.00752]
[1764600644733,0.24394824,86084.0,86079.0,0.31674363]
[1764600644932,0.232342,86080.0,86079.0,0.0727817]
[1764600645134,0.2323447,86079.0,86078.0,0.00752]
[1764600646008,0.24398495,86071.0,86068.0,0.04901]
[1764600646216,0.24398495,86071.0,86066.0,0.24399615]
[1764600646217,0.01161858,86069.0,86066.0,0.24399615]
[1764600646389,0.0116171,86080.0,86074.0,0.01161791]
[1764600646610,0.24396384,86079.0,86076.0,0.23235236]
[1764600646787,0.24395634,86081.0,86078.0,0.002]
[1764600647002,0.02902528,86091.0,86081.0,0.01161696]
[1764600647233,0.23233641,86083.0,86078.0,0.002]
[1764600647393,0.23233641,86083.0,86079.0,0.01605276]
[1764600647394,0.01161683,86082.0,86079.0,0.01605276]
[1764600647775,0.01161683,86082.0,86075.0,0.28136393]